[Event "Icelandic Team-ch Kvika Leagu 2023-24"]
[Site "Reykjavik"]
[Date "2024.02.29"]
[Round "1.1"]
[White "Pultinevicius, Paulius"]
[Black "Donchenko, Alexander"]
[Result "1-0"]
[ECO "D38"]
[WhiteElo "2575"]
[BlackElo "2643"]
[Annotator "TA"]
[PlyCount "83"]
[EventDate "2024.02.29"]
[EventType "team-tourn"]
[EventCountry "ISL"]
[SourceTitle "playchess.com"]
[Source "ChessBase"]
[SourceQuality "1"]
[TimeControl "40/5400+30:900+30"]

{[%evp 22,83,14,15,16,18,24,15,14,10,16,8,15,17,20,26,24,15,54,27,24,27,28,0,55,52,51,46,45,47,47,49,47,53,68,92,93,72,77,96,173,173,174,178,168,170,214,166,191,178,243,236,307,211,211,207,29967,257,29978,29979,29978,29979,29976,29974]} 1. d4 {[%emt 0:00:01]} Nf6 {[%emt 0:00:07]} 2. c4 {[%emt 0:00:05]} e6 {[%emt 0:00:05]} 3. Nf3 {[%emt 0:00:04]} d5 {[%emt 0:00:12]} 4. Nc3 {[%emt 0:00:05]} Bb4 {[%emt 0:00:15]} 5. cxd5 {[%emt 0:00:24]} exd5 {[%emt 0:00:08]} 6. Bf4 {[%emt 0:00:05] D38: Queen's Gambit Declined: Ragozin Defence (4 Nf3 Bb4).} O-O {[%emt 0:01:08]} 7. e3 {[%emt 0:00:12]} c5 {[%emt 0:00:28]} 8. Bd3 {[%emt 0:00:53]} Bg4 {[%emt 0:01:38]} 9. a3 {[%emt 0:03:02]} Bxc3+ {[%emt 0:00:51]} 10. bxc3 {[%emt 0:00:06]} Nh5 $146 {[%emt 0:00:57]} ({Predecessor:} 10... Qa5 11. O-O c4 12. Bc2 Ne4 13. Qb1 Bxf3 14. gxf3 Nxc3 15. Qxb7 Na6 16. Rfe1 Qb5 17. Qxb5 Nxb5 18. Ba4 Nac7 19. Bxb5 Nxb5 20. a4 {1-0 Zelbel,P (2429)-Haug,J (2391) EU-Cup 34th Porto Carras 2018 (2.4)}) 11. Be5 {[%emt 0:05:26]} Nc6 {[%emt 0:00:43]} 12. h3 {[%emt 0:00:26]} Bxf3 {[%emt 0:00:57]} 13. Qxf3 {[%emt 0:00:20]} g6 {[%emt 0:00:21]} 14. O-O {[%emt 0:08:10]} c4 {[%emt 0:17:01]} 15. Be2 {[%emt 0:13:42]} Qa5 {[%emt 0:09:13]} 16. Rab1 {[%emt 0:17:48]} Nxe5 {[%emt 0:00:50]} 17. dxe5 {[%emt 0:00:05]} Rae8 {[%emt 0:00:20]} 18. Rxb7 {[%emt 0:03:34]} Rxe5 {[%emt 0:02:05]} 19. g4 {[%emt 0:02:47]} Ng7 {[%emt 0:03:15]} 20. Qf6 {[%emt 0:08:43]} Qxc3 {[%emt 0:12:43]} 21. Re7 {[%emt 0:03:40]} Ne6 {[%emt 0:00:47]} 22. a4 {[%emt 0:03:38]} a5 {[%emt 0:13:34]} ({Black should play} 22... Qb2 $11) 23. Rd7 $1 $14 {[%emt 0:01:51]} Ng5 $1 {[%emt 0:13:06]} 24. Rxd5 {[%emt 0:02:38]} Rxe3 {[%emt 0:01:02]} (24... Nxh3+ $2 25. Kg2 Rfe8 26. Rxe5 (26. Kxh3 $2 Rh5+ 27. gxh5 Qxf6 $19) 26... Qxe5 27. Qxe5 Rxe5 28. Kxh3 $18) 25. fxe3 {[%emt 0:02:30]} Qxe3+ {[%emt 0:00:06]} 26. Rf2 $1 {[%emt 0:00:16]} Nxh3+ {[%emt 0:00:11]} 27. Kg2 {[%emt 0:00:39]} Nxf2 {[%emt 0:00:06]} 28. Qxf2 {[%emt 0:00:05]} Qb3 {[%emt 0:01:27]} 29. Bd1 {[%emt 0:04:17]} Qb7 {[%emt 0:02:11]} 30. Qf3 {[%emt 0:00:53]} c3 {[%emt 0:02:02]} (30... Qb4 $16) 31. Rc5 $1 $18 {[%emt 0:01:53]} (31. Rxa5 c2 32. Bxc2 (32. Qxb7 $2 cxd1=Q 33. Ra8 Qxg4+ 34. Kf2 Qd4+ 35. Kf1 Qf6+ 36. Ke2 Qe5+ 37. Kf2 Qc5+ 38. Kf3 Qc3+ 39. Ke2 Kg7 $17) 32... Qc7 $11) 31... Qd7 {[%emt 0:07:06]} 32. Rxc3 {[%emt 0:01:21]} Rb8 {[%emt 0:00:44]} 33. Rd3 {[%emt 0:06:50]} Rb2+ {[%emt 0:01:44]} 34. Kh3 {[%emt 0:00:10]} Qc7 {[%emt 0:00:39] [#]} 35. Qg3 $1 {[%emt 0:00:15]} Qc5 {[%emt 0:00:49]} (35... Qe7 {was called for.} 36. Bb3 Kg7) 36. Qd6 {[%emt 0:00:57]} Qc1 {[%emt 0:03:15]} 37. Qd8+ {[%emt 0:01:16]} Kg7 {[%emt 0:00:01]} 38. Qd4+ {[%emt 0:02:37]} (38. Qxa5 $2 Qh6+ 39. Kg3 Qh2+ 40. Kf3 Rf2+ 41. Ke4 Qf4+ 42. Kd5 Qg5+ 43. Kc4 Qxa5 $19) 38... f6 $2 {[%emt 0:01:20]} (38... Kg8 $18 39. Re3 Rb8) 39. Re3 $2 {[%emt 0:03:25]} (39. Qa7+ {mates} Kh6 40. Qe7 (40. Qxa5 {gets mated.} Qf4 41. g5+ fxg5) 40... Qc8 41. Bf3 (41. Qxf6 Rh2+ 42. Kg3 Rg2+ 43. Kh3 Rh2+ 44. Kg3 Rg2+ 45. Kh3 Rh2+ $11) 41... Qb8 42. Rd6 (42. Qxf6 $2 Qh2#) 42... Qc8 43. Rd5 (43. Qxf6 Rh2+ 44. Kg3 Rh3+ 45. Kf2 Rh2+ 46. Kg3 Rh3+ 47. Kf2 Rh2+ 48. Kg3 $11) (43. Rxf6 Rb7 44. Qxb7 Qxb7 45. Bxb7 Kg5 46. Ra6 h6 47. Kg3 h5 48. gxh5 Kxh5) 43... Rb6 44. Rd7 (44. Rxa5 Re6 $18) (44. Qe3+ Kg7 $18) 44... Qxd7 45. Qxd7) 39... Qd2 $2 {[%emt 0:04:28] [#]} (39... Rb7 $18 40. Bf3 Rf7) 40. Re7+ $1 {[%emt 0:00:00]} Kh6 {[%emt 0:00:00]} 41. g5+ $1 {[%emt 0:00:47]} (41. Qxf6 $2 Qh2#) 41... Qxg5 {[%emt 0:01:31]} 42. Qxb2 {[%emt 0:00:22]} 1-0

[Event "Icelandic Team-ch Kvika Leagu 2023-24"]
[Site "Reykjavik"]
[Date "2024.02.29"]
[Round "1.2"]
[White "Lomasov, Semyon"]
[Black "Kazakouski, Valery"]
[Result "0-1"]
[ECO "C50"]
[WhiteElo "2565"]
[BlackElo "2593"]
[Annotator "RC"]
[PlyCount "54"]
[EventDate "2024.02.29"]
[EventType "team-tourn"]
[EventCountry "ISL"]
[SourceTitle "playchess.com"]
[Source "ChessBase"]
[SourceQuality "1"]
[TimeControl "40/5400+30:900+30"]

1. e4 {[%emt 0:00:06]} e5 {[%emt 0:00:28]} 2. Nf3 {[%emt 0:00:50]} Nc6 {[%emt 0:00:09]} 3. Bc4 {[%emt 0:00:09]} d6 {[%emt 0:02:02]} 4. Nc3 {[%emt 0:05:15]} Na5 {[%emt 0:00:43]} 5. Bb5+ {[%emt 0:20:59]} c6 {[%emt 0:02:02]} 6. Be2 {[%emt 0:01:37]} c5 {[%emt 0:00:29]} 7. d3 {[%emt 0:02:28]} Be7 {[%emt 0:05:48]} 8. O-O {[%emt 0:07:56]} f5 {[%emt 0:11:06]} 9. Nd5 {[%emt 0:19:53]} Nf6 {[%emt 0:10:29]} 10. Nxe7 {[%emt 0:03:57]} Qxe7 {[%emt 0:00:51]} 11. c3 {[%emt 0:00:11]} Nc6 {[%emt 0:06:52]} 12. exf5 {[%emt 0:01:05]} Bxf5 {[%emt 0:00:42]} 13. d4 {[%emt 0:00:07]} O-O {[%emt 0:04:10]} 14. dxc5 {[%emt 0:03:51]} dxc5 {[%emt 0:00:37]} 15. Bg5 {[%emt 0:01:28]} h6 {[%emt 0:04:21]} 16. Bh4 {[%emt 0:08:11]} Rad8 {[%emt 0:03:18]} 17. Qb3+ {[%emt 0:04:38]} Kh8 {[%emt 0:06:59]} 18. Rad1 {[%emt 0:04:01]} e4 {[%emt 0:07:52]} 19. Nd2 {[%emt 0:00:28]} Na5 {[%emt 0:02:13]} 20. Qb5 {[%emt 0:03:40]} e3 {[%emt 0:02:29]} 21. fxe3 {[%emt 0:06:19]} Bc2 {[%emt 0:02:16]} 22. Rde1 {[%emt 0:01:30]} Qxe3+ {[%emt 0:03:39]} 23. Kh1 {[%emt 0:01:21]} Rxd2 {[%emt 0:06:10]} 24. Bh5 {[%emt 0:00:46]} Bd3 {[%emt 0:02:36]} 25. Qxa5 {[%emt 0:01:38]} Bxf1 {[%emt 0:00:15]} 26. Rxe3 {[%emt 0:00:16]} Bxg2+ {[%emt 0:00:06]} 27. Kg1 {[%emt 0:00:02]} Nxh5 {[%emt 0:00:10]} 0-1

[Event "Icelandic Team-ch Kvika Leagu 2023-24"]
[Site "Reykjavik"]
[Date "2024.03.01"]
[Round "1.3"]
[White "Laurusas, Tomas"]
[Black "Stefansson, Vignir Vatnar"]
[Result "1-0"]
[ECO "D38"]
[WhiteElo "2590"]
[BlackElo "2464"]
[Annotator "RC"]
[PlyCount "99"]
[EventDate "2024.02.29"]
[EventType "team-tourn"]
[EventCountry "ISL"]
[SourceTitle "playchess.com"]
[Source "ChessBase"]
[SourceQuality "1"]
[TimeControl "40/5400+30:900+30"]

1. d4 {[%emt 0:00:03]} d5 {[%emt 0:00:21]} 2. c4 {[%emt 0:00:39]} e6 {[%emt 0:00:15]} 3. Nc3 {[%emt 0:01:32]} Nf6 {[%emt 0:00:12]} 4. cxd5 {[%emt 0:00:39]} exd5 {[%emt 0:00:09]} 5. Bg5 {[%emt 0:00:07]} Bb4 {[%emt 0:00:06]} 6. Qa4+ {[%emt 0:06:49]} Nc6 {[%emt 0:00:13]} 7. e3 {[%emt 0:00:11]} h6 {[%emt 0:00:17]} 8. Bxf6 {[%emt 0:00:08]} Qxf6 {[%emt 0:00:05]} 9. Nf3 {[%emt 0:00:56]} O-O {[%emt 0:02:22]} 10. Rc1 {[%emt 0:00:20]} Qg6 {[%emt 0:02:42]} 11. Qd1 {[%emt 0:00:55]} Ne7 {[%emt 0:07:13]} 12. h3 {[%emt 0:06:27]} c6 {[%emt 0:06:25]} 13. Bd3 {[%emt 0:01:11]} Qf6 {[%emt 0:01:12]} 14. O-O {[%emt 0:00:12]} Bf5 {[%emt 0:17:47]} 15. Na4 {[%emt 0:11:43]} Bd6 {[%emt 0:04:15]} 16. Nc5 {[%emt 0:20:17]} Bxc5 {[%emt 0:01:55]} 17. Rxc5 {[%emt 0:00:12]} Bxd3 {[%emt 0:00:16]} 18. Qxd3 {[%emt 0:00:04]} Nf5 {[%emt 0:00:18]} 19. Ne5 {[%emt 0:02:06]} Rad8 {[%emt 0:01:59]} 20. Qe2 {[%emt 0:05:07]} Nd6 {[%emt 0:00:49]} 21. Ra5 {[%emt 0:01:59]} a6 {[%emt 0:01:26]} 22. Rc5 {[%emt 0:00:49]} Rfe8 {[%emt 0:02:30]} 23. Qf3 {[%emt 0:02:15]} Qe7 {[%emt 0:06:26]} 24. Rc2 {[%emt 0:01:16]} g6 {[%emt 0:01:23]} 25. a4 {[%emt 0:08:07]} Kg7 {[%emt 0:01:01]} 26. Nd3 {[%emt 0:02:24]} h5 {[%emt 0:01:32]} 27. Qf4 {[%emt 0:01:19]} f6 {[%emt 0:09:28]} 28. Qf3 {[%emt 0:02:19]} Qf7 {[%emt 0:01:17]} 29. Nc5 {[%emt 0:02:59]} g5 {[%emt 0:04:29]} 30. Rfc1 {[%emt 0:00:11]} Re7 {[%emt 0:02:01]} 31. Rc3 {[%emt 0:04:14]} Rde8 {[%emt 0:02:08]} 32. Rb3 {[%emt 0:00:39]} Ne4 {[%emt 0:01:12]} 33. Nxe4 {[%emt 0:02:33]} dxe4 {[%emt 0:01:02]} 34. Qd1 {[%emt 0:00:02]} Rd8 {[%emt 0:00:17]} 35. Rc5 {[%emt 0:02:24]} Re5 {[%emt 0:01:27]} 36. Rbc3 {[%emt 0:08:06]} Red5 {[%emt 0:00:43]} 37. b4 {[%emt 0:00:17]} R8d7 {[%emt 0:02:13]} 38. Qb1 {[%emt 0:05:48]} f5 {[%emt 0:02:52]} 39. b5 {[%emt 0:00:04]} axb5 {[%emt 0:01:32]} 40. axb5 {[%emt 0:00:00]} cxb5 {[%emt 0:00:00]} 41. Rxb5 {[%emt 0:03:30]} h4 {[%emt 0:01:04]} 42. Rb4 {[%emt 0:10:33]} Re7 {[%emt 0:01:26]} 43. Rcb3 {[%emt 0:00:01]} Rdd7 {[%emt 0:00:08]} 44. Rb6 {[%emt 0:00:14]} Rc7 {[%emt 0:01:26]} 45. R3b5 {[%emt 0:00:14]} Red7 {[%emt 0:01:23]} 46. Re5 {[%emt 0:04:41]} Re7 {[%emt 0:04:52]} 47. Qb5 {[%emt 0:00:21]} Rc1+ {[%emt 0:09:55]} 48. Kh2 {[%emt 0:00:01]} Rxe5 {[%emt 0:00:07]} 49. Qxe5+ {[%emt 0:00:07]} Kh7 {[%emt 0:00:05]} 50. Re6 {[%emt 0:01:25]} 1-0

[Event "Icelandic Team-ch Kvika Leagu 2023-24"]
[Site "Reykjavik"]
[Date "2024.03.01"]
[Round "1.4"]
[White "Gunnarsson, Arnar"]
[Black "Kulaots, Kaido"]
[Result "0-1"]
[ECO "A28"]
[WhiteElo "2410"]
[BlackElo "2525"]
[Annotator "RC"]
[PlyCount "160"]
[EventDate "2024.02.29"]
[EventType "team-tourn"]
[EventCountry "ISL"]
[SourceTitle "playchess.com"]
[Source "ChessBase"]
[SourceQuality "1"]
[TimeControl "40/5400+30:900+30"]

1. c4 {[%emt 0:04:53]} Nf6 {[%emt 0:02:25]} 2. Nc3 {[%emt 0:00:17]} e5 {[%emt 0:00:23]} 3. Nf3 {[%emt 0:00:05]} Nc6 {[%emt 0:00:19]} 4. e3 {[%emt 0:00:35]} Bb4 {[%emt 0:00:36]} 5. Qc2 {[%emt 0:03:12]} Bxc3 {[%emt 0:01:54]} 6. Qxc3 {[%emt 0:00:05]} Qe7 {[%emt 0:00:26]} 7. d4 {[%emt 0:00:11]} e4 {[%emt 0:05:50]} 8. Nd2 {[%emt 0:11:59]} d5 {[%emt 0:03:15]} 9. a3 {[%emt 0:01:28]} a5 {[%emt 0:06:11]} 10. b3 {[%emt 0:27:29]} Be6 {[%emt 0:05:11]} 11. Bb2 {[%emt 0:00:42]} O-O {[%emt 0:16:02]} 12. Rc1 {[%emt 0:05:48]} Qd7 {[%emt 0:17:38]} 13. h3 {[%emt 0:05:06]} Ne7 {[%emt 0:03:53]} 14. cxd5 {[%emt 0:07:40]} Nfxd5 {[%emt 0:02:17]} 15. Qc2 {[%emt 0:00:21]} f5 {[%emt 0:01:24]} 16. g3 {[%emt 0:00:19]} a4 {[%emt 0:08:42]} 17. b4 {[%emt 0:01:37]} b5 {[%emt 0:00:21]} 18. h4 {[%emt 0:02:40]} Rab8 {[%emt 0:01:49]} 19. Be2 {[%emt 0:00:59]} Rb6 {[%emt 0:03:21]} 20. Qb1 {[%emt 0:00:41]} Rd6 {[%emt 0:03:34]} 21. Rc5 {[%emt 0:00:44]} c6 {[%emt 0:00:19]} 22. h5 {[%emt 0:02:26]} Nf6 {[%emt 0:07:09]} 23. Qc2 {[%emt 0:06:51]} Ned5 {[%emt 0:00:46]} 24. Rh4 {[%emt 0:02:57]} Qe8 {[%emt 0:02:10]} 25. Qd1 {[%emt 0:04:25]} g5 {[%emt 0:01:19]} 26. hxg6 {[%emt 0:01:52]} hxg6 {[%emt 0:00:06]} 27. Bc1 {[%emt 0:01:29]} Kg7 {[%emt 0:01:09]} 28. Qc2 {[%emt 0:01:26]} Bd7 {[%emt 0:00:36]} 29. Nf1 {[%emt 0:03:18]} Rh8 {[%emt 0:00:40]} 30. Rxh8 {[%emt 0:01:01]} Qxh8 {[%emt 0:00:07]} 31. Bd2 {[%emt 0:00:47]} Qh1 {[%emt 0:00:24]} 32. Qd1 {[%emt 0:01:42]} Nh7 {[%emt 0:01:20]} 33. f4 {[%emt 0:01:07]} Qg1 {[%emt 0:01:28]} 34. Bc1 {[%emt 0:00:38]} Nhf6 {[%emt 0:01:04]} 35. Qd2 {[%emt 0:00:24]} g5 {[%emt 0:02:56]} 36. Bd1 {[%emt 0:00:20]} Be8 {[%emt 0:00:34]} 37. Qh2 {[%emt 0:00:36]} Qxh2 {[%emt 0:00:18]} 38. Nxh2 {[%emt 0:00:04]} Nd7 {[%emt 0:00:49]} 39. Rc2 {[%emt 0:00:11]} g4 {[%emt 0:00:33]} 40. Nf1 {[%emt 0:00:00]} N7b6 {[%emt 0:00:00]} 41. Be2 {[%emt 0:02:05]} Bf7 {[%emt 0:04:46]} 42. Kf2 {[%emt 0:03:03]} Kf8 {[%emt 0:00:25]} 43. Kg1 {[%emt 0:02:56]} Ke7 {[%emt 0:01:04]} 44. Bd2 {[%emt 0:01:17]} Rh6 {[%emt 0:00:51]} 45. Be1 {[%emt 0:00:57]} Nc7 {[%emt 0:06:37]} 46. Nd2 {[%emt 0:01:01]} Bd5 {[%emt 0:00:11]} 47. Bf2 {[%emt 0:00:48]} Kd6 {[%emt 0:00:12]} 48. Be1 {[%emt 0:06:53]} Rh8 {[%emt 0:00:25]} 49. Rc5 {[%emt 0:00:34]} Ra8 {[%emt 0:01:17]} 50. Nb1 {[%emt 0:00:45]} Ne6 {[%emt 0:01:45]} 51. Bd2 {[%emt 0:01:07]} Kd7 {[%emt 0:01:13]} 52. Rc1 {[%emt 0:00:41]} Bc4 {[%emt 0:00:20]} 53. Bxc4 {[%emt 0:00:38]} Nxc4 {[%emt 0:00:08]} 54. Rc2 {[%emt 0:00:34]} Nc7 {[%emt 0:01:38]} 55. Bc1 {[%emt 0:00:25]} Nd5 {[%emt 0:00:22]} 56. Re2 {[%emt 0:00:05]} Rh8 {[%emt 0:00:46]} 57. Kg2 {[%emt 0:00:13]} Kd6 {[%emt 0:00:42]} 58. Re1 {[%emt 0:01:16]} Rh3 {[%emt 0:00:42]} 59. Re2 {[%emt 0:00:15]} Ncb6 {[%emt 0:00:28]} 60. Rc2 {[%emt 0:00:35]} Nc4 {[%emt 0:01:04]} 61. Re2 {[%emt 0:00:02]} Rh7 {[%emt 0:00:28]} 62. Kg1 {[%emt 0:00:34]} Nf6 {[%emt 0:00:39]} 63. Nc3 {[%emt 0:00:14]} Rh3 {[%emt 0:00:35]} 64. Rg2 {[%emt 0:00:11]} Nh5 {[%emt 0:00:34]} 65. Ne2 {[%emt 0:00:29]} Nb6 {[%emt 0:00:21]} 66. d5 {[%emt 0:01:47]} Nxd5 {[%emt 0:00:39]} 67. Nd4 {[%emt 0:00:30]} Nxg3 {[%emt 0:00:35]} 68. Kf2 {[%emt 0:00:13]} Nh1+ {[%emt 0:00:23]} 69. Kg1 {[%emt 0:00:11]} Rh5 {[%emt 0:00:56]} 70. Nxf5+ {[%emt 0:01:01]} Rxf5 {[%emt 0:00:06]} 71. Kxh1 {[%emt 0:00:04]} Rh5+ {[%emt 0:00:49]} 72. Kg1 {[%emt 0:00:15]} Rh3 {[%emt 0:00:16]} 73. Rxg4 {[%emt 0:01:08]} Nxe3 {[%emt 0:00:06]} 74. Rg6+ {[%emt 0:00:18]} Kd5 {[%emt 0:00:12]} 75. Rg5+ {[%emt 0:00:07]} Kd4 {[%emt 0:00:42]} 76. Rc5 {[%emt 0:01:10]} Nc4 {[%emt 0:00:20]} 77. f5 {[%emt 0:00:10]} e3 {[%emt 0:00:31]} 78. f6 {[%emt 0:00:34]} e2 {[%emt 0:01:09]} 79. Kf2 {[%emt 0:00:09]} Rh2+ {[%emt 0:00:13]} 80. Ke1 {[%emt 0:00:10]} Kd3 {[%emt 0:00:15]} 0-1

[Event "Icelandic Team-ch Kvika Leagu 2023-24"]
[Site "Reykjavik"]
[Date "2024.03.01"]
[Round "1.5"]
[White "Steingrimsson, Hedinn"]
[Black "Hansen, Soren Bech"]
[Result "1-0"]
[ECO "E32"]
[WhiteElo "2477"]
[BlackElo "2183"]
[Annotator "RC"]
[PlyCount "111"]
[EventDate "2024.02.29"]
[EventType "team-tourn"]
[EventCountry "ISL"]
[SourceTitle "playchess.com"]
[Source "ChessBase"]
[SourceQuality "1"]
[TimeControl "40/5400+30:900+30"]

1. d4 {[%emt 0:03:38]} Nf6 {[%emt 0:01:35]} 2. c4 {[%emt 0:00:04]} e6 {[%emt 0:00:04]} 3. Nc3 {[%emt 0:00:10]} Bb4 {[%emt 0:00:07]} 4. Qc2 {[%emt 0:00:02]} O-O {[%emt 0:00:11]} 5. a3 {[%emt 0:00:01]} Bxc3+ {[%emt 0:00:10]} 6. Qxc3 {[%emt 0:00:02]} b6 {[%emt 0:00:12]} 7. Bg5 {[%emt 0:00:02]} Ba6 {[%emt 0:00:59]} 8. Qf3 {[%emt 0:00:27]} Nc6 {[%emt 0:00:34]} 9. e3 {[%emt 0:00:03]} Na5 {[%emt 0:04:38]} 10. Rc1 {[%emt 0:00:20]} c5 {[%emt 0:15:46]} 11. d5 {[%emt 0:02:13]} exd5 {[%emt 0:09:27]} 12. cxd5 {[%emt 0:00:08]} Bxf1 {[%emt 0:00:13]} 13. Kxf1 {[%emt 0:00:02]} Nb3 {[%emt 0:05:59]} 14. Rc2 {[%emt 0:09:47]} Qe7 {[%emt 0:10:24]} 15. Bxf6 {[%emt 0:05:20]} Qxf6 {[%emt 0:00:15]} 16. Qxf6 {[%emt 0:00:03]} gxf6 {[%emt 0:00:05]} 17. Ne2 {[%emt 0:03:59]} b5 {[%emt 0:11:58]} 18. Nf4 {[%emt 0:07:21]} Rab8 {[%emt 0:01:55]} 19. g4 {[%emt 0:04:20]} Rfe8 {[%emt 0:04:23]} 20. Kg2 {[%emt 0:01:51]} Re4 {[%emt 0:01:25]} 21. Rc3 {[%emt 0:05:48]} c4 {[%emt 0:01:43]} 22. f3 {[%emt 0:00:57]} Ree8 {[%emt 0:05:26]} 23. Rd1 {[%emt 0:05:39]} Rb6 {[%emt 0:02:24]} 24. d6 {[%emt 0:13:04]} Kf8 {[%emt 0:02:36]} 25. e4 {[%emt 0:00:33]} Re5 {[%emt 0:01:50]} 26. Kf2 {[%emt 0:15:56]} Rc6 {[%emt 0:00:14]} 27. Ke3 {[%emt 0:02:07]} a5 {[%emt 0:00:34]} 28. Rc2 {[%emt 0:00:03]} Nc5 {[%emt 0:04:39]} 29. Rcd2 {[%emt 0:05:43]} b4 {[%emt 0:02:24]} 30. axb4 {[%emt 0:08:05]} axb4 {[%emt 0:00:16]} 31. Nd5 {[%emt 0:00:32]} Rxd6 {[%emt 0:01:04]} 32. Nxb4 {[%emt 0:00:03]} Rb6 {[%emt 0:00:29]} 33. Nd5 {[%emt 0:00:24]} Rb3+ {[%emt 0:00:48]} 34. Ke2 {[%emt 0:00:16]} Kg7 {[%emt 0:03:17]} 35. Rc1 {[%emt 0:01:05]} Nd3 {[%emt 0:02:38]} 36. Rxc4 {[%emt 0:01:27]} Nxb2 {[%emt 0:00:40]} 37. Rcd4 {[%emt 0:01:22]} h5 {[%emt 0:01:58]} 38. h3 {[%emt 0:00:04]} hxg4 {[%emt 0:00:09]} 39. hxg4 {[%emt 0:00:01]} Re8 {[%emt 0:00:25]} 40. Ne3 {[%emt 0:00:00]} Rh8 {[%emt 0:00:00]} 41. Kf2 {[%emt 0:05:24]} Kg6 {[%emt 0:04:57]} 42. Ng2 {[%emt 0:01:34]} Kg7 {[%emt 0:04:32]} 43. Kg3 {[%emt 0:00:44]} Rh1 {[%emt 0:00:50]} 44. Nh4 {[%emt 0:02:08]} Rc1 {[%emt 0:03:16]} 45. Nf5+ {[%emt 0:03:37]} Kg6 {[%emt 0:01:30]} 46. Rxd7 {[%emt 0:05:07]} Nc4 {[%emt 0:01:00]} 47. Nh4+ {[%emt 0:01:56]} Kg7 {[%emt 0:02:42]} 48. Nf5+ {[%emt 0:00:41]} Kg6 {[%emt 0:00:06]} 49. Nh4+ {[%emt 0:00:01]} Kg7 {[%emt 0:00:07]} 50. Rh2 {[%emt 0:00:55]} Ne5 {[%emt 0:01:41]} 51. Nf5+ {[%emt 0:01:42]} Kg6 {[%emt 0:00:11]} 52. Rh6+ {[%emt 0:00:23]} Kg5 {[%emt 0:00:07]} 53. Rh5+ {[%emt 0:00:02]} Kg6 {[%emt 0:00:07]} 54. Nh4+ {[%emt 0:00:18]} Kg7 {[%emt 0:00:06]} 55. Rd8 {[%emt 0:00:24]} Rg1+ {[%emt 0:04:41]} 56. Kf2 {[%emt 0:00:22]} 1-0

[Event "Icelandic Team-ch Kvika Leagu 2023-24"]
[Site "Reykjavik"]
[Date "2024.02.29"]
[Round "1.6"]
[White "Van den Berg, Bram"]
[Black "Ragnarsson, Dagur"]
[Result "0-1"]
[ECO "C01"]
[WhiteElo "2211"]
[BlackElo "2331"]
[Annotator "RC"]
[PlyCount "52"]
[EventDate "2024.02.29"]
[EventType "team-tourn"]
[EventCountry "ISL"]
[SourceTitle "playchess.com"]
[Source "ChessBase"]
[SourceQuality "1"]
[TimeControl "40/5400+30:900+30"]

1. e4 {[%emt 0:00:05]} e6 {[%emt 0:00:45]} 2. d4 {[%emt 0:02:50]} d5 {[%emt 0:00:10]} 3. c4 {[%emt 0:00:38]} dxe4 {[%emt 0:01:06]} 4. Nc3 {[%emt 0:00:23]} Nf6 {[%emt 0:00:38]} 5. f3 {[%emt 0:00:33]} Bb4 {[%emt 0:04:47]} 6. Qa4+ {[%emt 0:01:12]} Nc6 {[%emt 0:00:28]} 7. a3 {[%emt 0:00:05]} Bxc3+ {[%emt 0:00:43]} 8. bxc3 {[%emt 0:00:06]} O-O {[%emt 0:15:24]} 9. Qc2 {[%emt 0:01:08]} exf3 {[%emt 0:07:57]} 10. Nxf3 {[%emt 0:00:24]} e5 {[%emt 0:00:05]} 11. dxe5 {[%emt 0:27:32]} Re8 {[%emt 0:08:34]} 12. Be2 {[%emt 0:01:49]} Nxe5 {[%emt 0:00:13]} 13. Nxe5 {[%emt 0:00:15]} Rxe5 {[%emt 0:00:08]} 14. O-O {[%emt 0:00:13]} Qe7 {[%emt 0:04:39]} 15. Bd3 {[%emt 0:01:55]} Qc5+ {[%emt 0:14:59]} 16. Kh1 {[%emt 0:02:08]} Bg4 {[%emt 0:04:22]} 17. Rb1 {[%emt 0:07:02]} Qc6 {[%emt 0:05:06]} 18. Bf4 {[%emt 0:01:50]} Re6 {[%emt 0:01:38]} 19. c5 {[%emt 0:04:10]} Rd8 {[%emt 0:06:05]} 20. Bc4 {[%emt 0:07:04]} Re4 {[%emt 0:00:15]} 21. Qb3 {[%emt 0:00:06]} Bh5 {[%emt 0:03:58]} 22. Qa2 {[%emt 0:12:43]} Qxc5 {[%emt 0:01:38]} 23. Bb3 {[%emt 0:00:06]} Rde8 {[%emt 0:02:59]} 24. Bg3 {[%emt 0:02:36]} Re2 {[%emt 0:01:42]} 25. Rb2 {[%emt 0:00:13]} Qf5 {[%emt 0:07:03]} 26. Rg1 {[%emt 0:01:06]} Ne4 {[%emt 0:02:01]} 0-1

[Event "Icelandic Team-ch Kvika Leagu 2023-24"]
[Site "Reykjavik"]
[Date "2024.02.29"]
[Round "1.7"]
[White "Bjornsson, Sigurbjorn"]
[Black "Prudnikov, Andrey"]
[Result "1-0"]
[ECO "B45"]
[WhiteElo "2305"]
[BlackElo "2094"]
[Annotator "RC"]
[PlyCount "85"]
[EventDate "2024.02.29"]
[EventType "team-tourn"]
[EventCountry "ISL"]
[SourceTitle "playchess.com"]
[Source "ChessBase"]
[SourceQuality "1"]
[TimeControl "40/5400+30:900+30"]

1. e4 {[%emt 0:00:06]} c5 {[%emt 0:00:06]} 2. Nf3 {[%emt 0:00:09]} Nf6 {[%emt 0:00:27]} 3. Nc3 {[%emt 0:00:56]} e6 {[%emt 0:01:18]} 4. d4 {[%emt 0:00:20]} cxd4 {[%emt 0:00:06]} 5. Nxd4 {[%emt 0:00:04]} Nc6 {[%emt 0:00:11]} 6. Ndb5 {[%emt 0:06:55]} Bc5 {[%emt 0:00:14]} 7. Bf4 {[%emt 0:11:13]} O-O {[%emt 0:00:12]} 8. Bc7 {[%emt 0:03:07]} Qe7 {[%emt 0:00:06]} 9. Bd6 {[%emt 0:00:54]} Bxd6 {[%emt 0:00:06]} 10. Qxd6 {[%emt 0:00:11]} Qd8 {[%emt 0:00:07]} 11. O-O-O {[%emt 0:01:46]} a6 {[%emt 0:00:27]} 12. Nd4 {[%emt 0:01:40]} Ne7 {[%emt 0:00:07]} 13. Bd3 {[%emt 0:03:18]} b5 {[%emt 0:00:22]} 14. g4 {[%emt 0:05:55]} Ne8 {[%emt 0:07:03]} 15. Qg3 {[%emt 0:03:31]} Qb6 {[%emt 0:07:59]} 16. e5 {[%emt 0:06:25]} b4 {[%emt 0:19:32]} 17. Ne4 {[%emt 0:10:25]} Ng6 {[%emt 0:11:49]} 18. Ng5 {[%emt 0:07:08]} Qa5 {[%emt 0:04:21]} 19. Kb1 {[%emt 0:06:27]} Qxe5 {[%emt 0:02:17]} 20. Nxh7 {[%emt 0:00:25]} Qxg3 {[%emt 0:02:38]} 21. hxg3 {[%emt 0:00:05]} Bb7 {[%emt 0:01:39]} 22. Nxf8 {[%emt 0:07:17]} Kxf8 {[%emt 0:04:12]} 23. Rh5 {[%emt 0:05:51]} Nf6 {[%emt 0:04:07]} 24. Rc5 {[%emt 0:05:53]} Nxg4 {[%emt 0:03:35]} 25. Bxg6 {[%emt 0:00:21]} fxg6 {[%emt 0:00:18]} 26. Rc7 {[%emt 0:00:23]} Bc8 {[%emt 0:02:34]} 27. Nxe6+ {[%emt 0:00:46]} Ke7 {[%emt 0:03:20]} 28. Nf4 {[%emt 0:02:08]} Nxf2 {[%emt 0:01:54]} 29. Rd2 {[%emt 0:01:32]} Ng4 {[%emt 0:02:15]} 30. Nd5+ {[%emt 0:00:25]} Kd8 {[%emt 0:00:25]} 31. Rc4 {[%emt 0:01:48]} Nf6 {[%emt 0:02:26]} 32. Nb6 {[%emt 0:01:07]} Rb8 {[%emt 0:00:10]} 33. Rxc8+ {[%emt 0:00:28]} Rxc8 {[%emt 0:00:07]} 34. Nxc8 {[%emt 0:00:02]} Kxc8 {[%emt 0:00:10]} 35. Rd4 {[%emt 0:00:14]} a5 {[%emt 0:00:28]} 36. Rc4+ {[%emt 0:00:18]} Kb7 {[%emt 0:01:11]} 37. Rc5 {[%emt 0:00:26]} Kb6 {[%emt 0:00:07]} 38. Rg5 {[%emt 0:00:05]} Ne8 {[%emt 0:02:21]} 39. Rxg6+ {[%emt 0:00:05]} Kb7 {[%emt 0:00:07]} 40. Kc1 {[%emt 0:00:00]} Ka7 {[%emt 0:00:00]} 41. Kd2 {[%emt 0:00:15]} d6 {[%emt 0:01:04]} 42. Re6 {[%emt 0:00:44]} Nf6 {[%emt 0:00:05]} 43. Re7+ {[%emt 0:00:10]} 1-0